bitfinex-derivatives/quotes_BTCF0:USTF0_20241125
["timestamp","ask_amount","ask_price","bid_price","bid_amount"]
[1732496024133,0.01009838,98024.0,98023.0,1.65419893]
[1732496024349,0.00012624,98024.0,98023.0,1.65419893]
[1732496024635,0.01011328,98024.0,98023.0,1.65419893]
[1732496025340,0.01011328,98024.0,98023.0,2.51401038]
[1732496025638,0.01011328,98024.0,98023.0,1.93966021]
[1732496025840,0.032,98038.0,98023.0,2.25686844]
[1732496026133,0.0313,98050.0,98049.0,0.050936]
[1732496026334,0.03773721,98050.0,98049.0,0.191976]
[1732496027036,0.03773721,98050.0,98049.0,0.19248503]
[1732496028343,0.03773721,98050.0,98049.0,0.22496772]
[1732496029240,0.04796424,98050.0,98049.0,0.22496772]
[1732496031433,0.04791826,98050.0,98049.0,0.22496772]
[1732496031835,0.18304413,98061.0,98049.0,0.47403172]
[1732496032035,0.04207763,98069.0,98068.0,0.050926]
[1732496032235,0.0324,98089.0,98087.0,0.050916]
[1732496032531,0.0324,98089.0,98088.0,0.5022]
[1732496033935,0.0324,98089.0,98088.0,0.3612]
[1732496034132,0.0324,98089.0,98088.0,0.5022]
[1732496034333,0.0324,98089.0,98088.0,0.53437734]
[1732496036642,0.0324,98089.0,98088.0,0.39337734]
[1732496036836,0.0324,98089.0,98088.0,0.43433734]
[1732496037030,0.0324,98089.0,98088.0,0.17353734]
[1732496037939,0.04201454,98089.0,98088.0,0.17353734]
[1732496038335,0.0324,98089.0,98088.0,0.17353734]
[1732496038541,0.0324,98089.0,98088.0,0.03257734]
[1732496038847,0.0324,98089.0,98088.0,0.35468141]
[1732496039050,0.0324,98089.0,98088.0,0.17353734]
[1732496039244,0.0324,98089.0,98088.0,0.35461223]
[1732496039640,0.0324,98089.0,98088.0,0.17353734]
[1732496039842,0.0324,98089.0,98088.0,0.35465793]
[1732496040044,0.0324,98089.0,98088.0,0.17353734]
[1732496040944,0.0324,98089.0,98088.0,0.14096]
[1732496041145,0.0324,98089.0,98087.0,0.03349334]
[1732496041445,0.0324,98089.0,98087.0,0.207287]
[1732496041446,0.0004,98088.0,98087.0,0.207287]
[1732496043651,0.0639,98090.0,98088.0,0.050915]
[1732496044049,0.0639,98090.0,98089.0,0.0004]
[1732496044463,0.0639,98090.0,98089.0,0.14096]
[1732496044753,0.0639,98090.0,98087.0,0.03283366]
[1732496045047,0.0004,98088.0,98085.0,0.14096]
[1732496045254,0.0004,98088.0,98087.0,0.050916]
[1732496045453,0.0639,98090.0,98089.0,0.050915]
[1732496045841,0.0639,98090.0,98089.0,0.0004]
[1732496048949,0.36974,98090.0,98089.0,0.0004]
[1732496049150,0.36974,98090.0,98058.0,0.3608]
[1732496049151,0.66974,98090.0,98072.0,0.18112059]
[1732496049460,0.3608,98073.0,98071.0,0.050924]
[1732496049645,0.0311,98072.0,98071.0,0.050924]
[1732496051749,0.0311,98072.0,98071.0,0.23211955]
[1732496051949,0.0311,98072.0,98071.0,0.050924]
[1732496054555,0.0311,98072.0,98071.0,0.03229204]
[1732496054857,0.0628,98072.0,98069.0,0.02037893]
[1732496055157,0.00040001,98070.0,98069.0,0.02037893]
[1732496056755,0.00040001,98070.0,98066.0,0.18146902]
[1732496056959,0.00040001,98070.0,98059.0,0.050931]
[1732496057155,0.3608,98065.0,98060.0,0.00318435]
[1732496057349,0.050932,98057.0,98056.0,0.13216902]
[1732496057559,0.00040001,98060.0,98033.0,0.050944]
[1732496057560,0.050933,98054.0,98033.0,0.050944]
[1732496057761,0.3608,98034.0,98033.0,0.050944]
[1732496058058,0.36120001,98034.0,98033.0,0.050944]
[1732496058261,0.39400001,98034.0,98033.0,0.050944]
[1732496058650,0.39400001,98034.0,98033.0,0.05107054]
[1732496060374,0.39400001,98034.0,98033.0,0.05425615]
[1732496061556,0.39400001,98034.0,98033.0,0.05425616]
[1732496061767,0.39400001,98034.0,98033.0,0.05107054]
[1732496062360,0.44494401,98034.0,98033.0,0.00012654]
[1732496062656,0.050948,98026.0,98021.0,0.05095]
[1732496062855,0.050948,98026.0,98013.0,0.24447799]
[1732496063063,0.050948,98026.0,98014.0,0.00318572]
[1732496063254,0.050948,98026.0,98023.0,0.050949]
[1732496063566,0.050949,98023.0,98021.0,8.003e-05]
[1732496063759,0.3608,98024.0,98023.0,0.050949]
[1732496063955,1.8608,98024.0,98023.0,0.050949]
[1732496064160,1.8608,98024.0,98023.0,0.051349]
[1732496064362,0.3608,98024.0,98023.0,0.051349]
[1732496064567,0.50168,98024.0,98023.0,0.051349]
[1732496066658,0.3608,98024.0,98023.0,0.051349]
[1732496067561,0.3608,98024.0,98023.0,0.08395626]
[1732496067763,0.3608,98024.0,98023.0,0.08714205]
[1732496067963,1.50056001,98033.0,98027.0,0.050947]
[1732496068162,1.5,98033.0,98028.0,0.00318579]
[1732496068357,1.5,98033.0,98032.0,0.0004]
[1732496068557,0.03292594,98034.0,98032.0,0.00358548]
[1732496068769,0.03292594,98034.0,98033.0,0.050944]
[1732496068972,0.03292594,98034.0,98033.0,0.051344]
[1732496069564,0.03292594,98034.0,98033.0,0.05452946]
[1732496069765,0.00012594,98034.0,98033.0,0.05452946]
[1732496070469,0.00012594,98034.0,98033.0,0.051344]
[1732496070671,0.00012594,98034.0,98033.0,0.05452943]
[1732496072066,0.00012594,98034.0,98033.0,0.00358543]
[1732496072274,0.30612594,98034.0,98033.0,0.0004]
[1732496072874,0.00012594,98034.0,98033.0,0.0004]
[1732496075385,0.00012594,98034.0,98033.0,0.00358547]
[1732496077868,0.00012594,98034.0,98033.0,0.0004]
[1732496078070,0.00012594,98034.0,98033.0,0.00358552]
[1732496078375,0.00012594,98034.0,98033.0,0.051344]
[1732496079066,0.00012594,98034.0,98033.0,0.05452968]
[1732496080068,1.50012594,98034.0,98033.0,0.05452968]
[1732496080973,0.00012594,98034.0,98033.0,0.05452968]
[1732496081464,0.3647,98066.0,98047.0,0.050936]
[1732496081465,0.050933,98055.0,98047.0,0.050936]
[1732496081662,0.06977662,98060.0,98049.0,0.050935]
[1732496081865,0.050935,98051.0,98050.0,0.00318568]
[1732496082066,0.050935,98051.0,98050.0,0.00318507]
[1732496082270,0.356895,98051.0,98050.0,0.00318507]
[1732496082468,0.35702694,98051.0,98050.0,0.00318507]
[1732496083780,0.35702694,98051.0,98049.0,0.050935]
[1732496084075,0.00040001,98050.0,98049.0,0.050935]
[1732496084275,0.00040001,98050.0,98049.0,0.05412017]
[1732496084873,1.50040001,98050.0,98049.0,0.05412017]
[1732496086873,1.67300001,98050.0,98049.0,0.00318517]
[1732496087372,1.97896001,98050.0,98049.0,0.00318517]
[1732496087779,0.050937,98047.0,98044.0,0.24335174]
[1732496087964,0.050943,98036.0,98034.0,0.30301195]
[1732496088166,0.5318,98035.0,98029.0,0.30301195]
[1732496088367,0.1408,98034.0,98029.0,0.30301195]
[1732496088569,0.00040001,98030.0,98029.0,0.30301195]
[1732496088775,0.00040001,98030.0,98029.0,0.67471064]
[1732496088967,0.00040001,98030.0,98029.0,0.66961316]
[1732496089168,1.50040001,98030.0,98029.0,0.37169866]
[1732496090578,1.50040001,98030.0,98029.0,0.00509745]
[1732496090873,1.50040001,98030.0,98022.0,0.30423858]
[1732496090874,1.83774001,98030.0,98022.0,0.30423858]
[1732496091078,0.05095,98022.0,98021.0,0.30431861]
[1732496091276,0.19175,98022.0,98021.0,0.00517794]
[1732496091466,0.19215001,98022.0,98021.0,0.00517794]
[1732496091668,0.19215001,98022.0,98021.0,8.003e-05]
[1732496092373,1.69215001,98022.0,98021.0,8.003e-05]
[1732496093182,1.99819001,98022.0,98021.0,8.003e-05]
[1732496094678,2.03213235,98022.0,98021.0,8.003e-05]
[1732496096079,1.98118235,98022.0,98013.0,0.00153027]
[1732496096280,0.411754,98014.0,98013.0,0.00153027]
[1732496096485,0.41215401,98014.0,98013.0,0.00153027]
[1732496101075,1.91215401,98014.0,98013.0,0.00153027]
[1732496101275,0.050958,98006.0,98005.0,0.00012145]
[1732496101579,0.050958,98006.0,98005.0,0.00330796]
[1732496101783,0.050958,98006.0,98005.0,0.00012145]
[1732496101978,0.050958,98006.0,98005.0,0.00330794]
[1732496102286,0.41215801,98006.0,98005.0,0.00330794]
[1732496102479,0.41215801,98006.0,98005.0,0.00012145]
[1732496102686,0.41215801,98006.0,98005.0,0.00330794]
[1732496102986,0.41215801,98006.0,98005.0,0.00012145]
[1732496103582,0.44574328,98006.0,98005.0,0.00012145]
[1732496104775,0.75186328,98006.0,97990.0,0.30423858]
[1732496104981,0.75186328,98006.0,97989.0,0.050967]
[1732496104982,0.3608,97996.0,97989.0,0.050967]
[1732496105182,0.00040001,97991.0,97989.0,0.050967]
[1732496105397,0.00040001,97990.0,97989.0,0.050967]
[1732496105890,0.050967,97989.0,97988.0,0.00010323]
[1732496106290,0.05145891,97989.0,97988.0,0.00010323]
[1732496107386,1.55145891,97989.0,97988.0,0.00010323]
[1732496108186,1.55145891,97989.0,97968.0,0.30423858]
[1732496108187,0.05097,97984.0,97964.0,0.05098]
[1732496108388,0.05097,97984.0,97964.0,0.08418]
[1732496108389,0.411779,97965.0,97964.0,0.08418]
[1732496108584,0.41217901,97965.0,97964.0,0.0332]
[1732496110390,0.39512159,97965.0,97964.0,0.0332]
[1732496111292,0.44610059,97965.0,97964.0,0.0332]
[1732496111682,0.58698059,97965.0,97964.0,0.0332]
[1732496112687,0.36120001,97965.0,97964.0,0.0332]
[1732496112902,0.36120001,97965.0,97964.0,0.0639]
[1732496117096,0.00040001,97965.0,97964.0,0.4247]
[1732496117291,0.00040001,97965.0,97964.0,0.0332]
[1732496117697,0.14116001,97965.0,97964.0,0.0332]
[1732496118097,0.14116001,97965.0,97961.0,9.63e-05]
[1732496118098,0.050981,97962.0,97961.0,9.63e-05]
[1732496118496,0.05138101,97962.0,97961.0,9.63e-05]
[1732496118691,1.55138101,97962.0,97961.0,9.63e-05]
[1732496119598,0.05099,97945.0,97943.0,0.050991]
[1732496119796,1.89117861,97962.0,97940.0,0.0631]
[1732496119797,0.050991,97943.0,97940.0,0.0329]
[1732496120200,0.05139101,97943.0,97940.0,0.0329]
[1732496120408,1.55139101,97943.0,97933.0,0.411796]
[1732496120988,1.55139101,97943.0,97933.0,0.3608]
[1732496121195,1.50040001,97943.0,97933.0,0.3608]
[1732496121496,0.00040001,97943.0,97941.0,0.411791]
[1732496124704,0.00040001,97943.0,97942.0,0.00471954]
[1732496125102,0.00040001,97943.0,97942.0,0.00153146]
[1732496125802,1.5,97968.0,97959.0,0.050983]
[1732496125803,0.1408,97960.0,97959.0,0.050983]
[1732496126005,1.50060001,97968.0,97959.0,0.3608]
[1732496126206,1.5,97968.0,97965.0,0.050979]
[1732496126407,1.5,97968.0,97960.0,0.0319]
[1732496126408,0.03306157,97968.0,97960.0,0.0319]
[1732496126705,0.1408,97969.0,97960.0,0.0319]
[1732496126706,0.0004,97961.0,97960.0,0.0319]
[1732496127511,0.03279728,97961.0,97960.0,0.0319]
[1732496129101,0.050982,97960.0,97959.0,0.0004]
[1732496129500,0.051382,97960.0,97959.0,0.0004]
[1732496129895,0.050991,97943.0,97942.0,0.00153146]
[1732496130108,0.411791,97943.0,97942.0,0.00153146]
[1732496130410,0.0004,97943.0,97942.0,0.3608]
[1732496130600,0.0004,97943.0,97941.0,0.050992]
[1732496130798,0.3612,97943.0,97935.0,0.050995]
[1732496131001,0.3612,97943.0,97933.0,0.3608]
[1732496131002,0.502,97943.0,97933.0,0.3608]
[1732496131297,0.502,97943.0,97933.0,0.411796]
[1732496131298,0.051396,97934.0,97933.0,0.411796]
[1732496131497,0.0004,97934.0,97933.0,0.411796]
[1732496134117,0.03260443,97952.0,97951.0,0.050987]
[1732496134300,0.1408,97961.0,97950.0,0.3608]
[1732496134503,0.1408,97961.0,97951.0,0.0004]
[1732496134803,0.1408,97961.0,97960.0,0.050982]
[1732496135004,0.03287021,97963.0,97960.0,0.050982]
[1732496135206,0.1408,97964.0,97960.0,0.050982]
[1732496135431,0.19178,97964.0,97962.0,0.0004]
[1732496135703,0.19178,97964.0,97963.0,0.0004]
[1732496140801,0.1408,97964.0,97963.0,0.0004]
[1732496141012,0.3608,97968.0,97967.0,0.050978]
[1732496141406,0.3608,97968.0,97967.0,0.051378]
[1732496141602,0.1408,97970.0,97967.0,0.0004]
[1732496141906,0.1408,97970.0,97969.0,0.0004]
[1732496142510,0.050977,97971.0,97969.0,0.0004]
[1732496142713,0.050977,97971.0,97970.0,0.050977]
[1732496142908,0.050977,97971.0,97970.0,0.051377]
[1732496143417,0.1408,97974.0,97970.0,0.0004]
[1732496143624,0.050973,97977.0,97975.0,0.050974]
[1732496143803,0.1408,97976.0,97975.0,0.050974]
[1732496144613,0.20286761,97980.0,97976.0,0.050973]
[1732496144915,0.1408,97978.0,97976.0,0.050973]
[1732496145308,0.39439677,97979.0,97976.0,0.050973]
[1732496145509,0.53519677,97979.0,97976.0,0.050973]
[1732496145711,0.01270578,97977.0,97976.0,0.050973]
[1732496146517,0.58672878,97979.0,97976.0,0.050973]
[1732496146518,0.01270578,97978.0,97976.0,0.050973]
[1732496146813,0.39495678,97979.0,97978.0,0.050973]
[1732496147019,0.39439677,97979.0,97978.0,0.050973]
[1732496147219,0.39439677,97979.0,97978.0,0.051373]
[1732496148119,0.15189561,97984.0,97983.0,0.05097]
[1732496148418,0.15189561,97986.0,97985.0,0.050969]
[1732496148915,0.15189561,97987.0,97985.0,0.051369]
[1732496149116,0.51269561,97988.0,97985.0,0.0004]
[1732496149322,0.54635548,97988.0,97986.0,0.051368]
[1732496149617,0.54635548,97988.0,97987.0,0.0004]
[1732496150123,0.39445987,97988.0,97987.0,0.0004]
[1732496152118,0.70061987,97988.0,97987.0,0.0004]
[1732496156214,0.39445987,97988.0,97987.0,0.0004]
[1732496156411,0.39445987,97988.0,97987.0,0.051368]
[1732496156923,0.53521987,97988.0,97987.0,0.051368]
[1732496157123,0.62662572,97988.0,97987.0,0.051368]
[1732496157321,0.53521987,97988.0,97987.0,0.051368]
[1732496158627,0.17441987,97988.0,97987.0,0.051368]
[1732496159911,0.03365987,97988.0,97987.0,0.0004]
[1732496160111,0.20451643,97989.0,97987.0,0.0004]
[1732496160311,0.29592228,97989.0,97987.0,0.0004]
[1732496160518,0.24495528,97989.0,97975.0,0.0306]
[1732496160722,0.050974,97976.0,97975.0,0.081574]
[1732496160922,0.3608,97982.0,97975.0,0.081574]
[1732496160923,0.050971,97982.0,97981.0,0.050971]
[1732496161119,0.14076,97982.0,97981.0,0.050971]
[1732496161620,0.01269559,97986.0,97975.0,0.0306]
[1732496161925,0.14076,97984.0,97983.0,0.05097]
[1732496163222,0.15345559,97984.0,97983.0,0.05097]
[1732496163525,0.01269559,97985.0,97977.0,0.24374437]
[1732496163723,1.5,97986.0,97985.0,0.050969]
[1732496163936,1.550969,97986.0,97985.0,0.050969]
[1732496164924,0.050973,97978.0,97977.0,0.24374437]
[1732496165126,0.050973,97978.0,97963.0,0.0302]
[1732496165127,0.14076,97978.0,97963.0,0.0302]
[1732496165331,0.050976,97972.0,97971.0,0.050976]
[1732496166128,0.20359755,97972.0,97971.0,0.050976]
[1732496166633,0.050976,97972.0,97971.0,0.050976]
[1732496166827,0.20359755,97972.0,97971.0,0.050976]
[1732496168220,0.050976,97972.0,97971.0,0.050976]
[1732496169234,0.13343777,97972.0,97971.0,0.050976]
[1732496170230,0.13343782,97972.0,97971.0,0.050976]
[1732496171228,0.08385928,97972.0,97971.0,0.050976]
[1732496172220,0.13343498,97972.0,97971.0,0.050976]
[1732496172829,0.13343498,97972.0,97963.0,0.0302]
[1732496172830,0.08245898,97972.0,97965.0,0.411779]
[1732496173136,0.14076,97974.0,97967.0,0.050978]
[1732496173137,0.15281236,97968.0,97967.0,0.050978]
[1732496174129,0.050975,97973.0,97969.0,0.050977]
[1732496174327,0.050975,97973.0,97971.0,0.30563316]
[1732496174533,0.050975,97973.0,97972.0,0.0004]
[1732496174731,0.050975,97973.0,97972.0,0.051376]
[1732496174936,0.10441105,97975.0,97972.0,0.0004]
[1732496175132,0.0127191,97976.0,97974.0,0.050975]
[1732496175335,0.0127191,97977.0,97976.0,0.050974]
[1732496175539,0.03349345,97978.0,97976.0,0.38415589]
[1732496175836,0.03349345,97978.0,97977.0,0.63878293]
[1732496176042,0.03349345,97978.0,97977.0,0.39678189]
[1732496176337,0.0004,97978.0,97977.0,0.39678189]
[1732496177232,0.01313381,97978.0,97977.0,0.39678189]
[1732496178433,0.0004,97978.0,97977.0,0.39678189]
[1732496179634,0.0004,97978.0,97977.0,0.39717012]
[1732496181341,0.04997255,97978.0,97977.0,0.0004]
[1732496182340,0.00635908,97978.0,97977.0,0.0004]
[1732496182734,0.0004,97978.0,97977.0,0.0004]
[1732496183331,0.01018962,97978.0,97977.0,0.0004]
[1732496183535,0.0161487,97978.0,97977.0,0.0004]
[1732496183734,0.0161487,97978.0,97977.0,0.18367755]
[1732496184032,0.0161487,97978.0,97977.0,0.0004]
[1732496184236,0.0161487,97978.0,97977.0,0.18364503]
[1732496184845,0.0161487,97978.0,97977.0,0.0004]
[1732496187236,0.0004,97978.0,97977.0,0.0004]
[1732496187438,0.01648417,97978.0,97977.0,0.0004]
[1732496189138,0.01648417,97978.0,97977.0,0.32537565]
[1732496191442,0.03271328,97978.0,97977.0,0.32537565]
[1732496192752,0.03271328,97978.0,97977.0,0.63061587]
[1732496193752,0.03271328,97978.0,97977.0,0.32537565]
[1732496194149,0.03271328,97978.0,97977.0,0.63058603]
[1732496194745,0.03271328,97978.0,97977.0,0.30561038]
[1732496196044,0.03271328,97978.0,97977.0,0.0004]
[1732496197350,0.03271328,97978.0,97966.0,0.18316591]
[1732496197651,0.050979,97967.0,97962.0,0.050981]
[1732496197851,0.18314586,97965.0,97962.0,0.050981]
[1732496198043,0.0004,97963.0,97962.0,0.050981]
[1732496198237,0.08319347,97963.0,97962.0,0.050981]
[1732496198447,0.06649192,97963.0,97962.0,0.050981]
[1732496199540,0.05605704,97963.0,97962.0,0.050981]
[1732496199746,0.00648454,97963.0,97962.0,0.050981]
[1732496200145,0.0004,97963.0,97962.0,0.050981]
[1732496200445,0.01312045,97963.0,97962.0,0.050981]
[1732496200650,0.01920499,97963.0,97962.0,0.050981]
[1732496200843,0.00648454,97963.0,97962.0,0.050981]
[1732496201440,0.00631592,97963.0,97962.0,0.050981]
[1732496201737,0.0004,97963.0,97962.0,0.050981]
[1732496214145,0.0004,97963.0,97962.0,0.68634892]
[1732496214351,0.0004,97963.0,97962.0,0.38113854]
[1732496214558,0.0004,97963.0,97962.0,0.68737854]
[1732496216555,0.0004,97963.0,97962.0,0.82801854]
[1732496219462,0.0004,97963.0,97962.0,0.497861]
[1732496220251,0.0004,97963.0,97962.0,0.191621]
[1732496224252,0.0004,97963.0,97962.0,0.43568636]
[1732496225562,0.0004,97963.0,97962.0,0.191621]
[1732496226464,0.0004,97963.0,97962.0,0.52482171]
[1732496227054,0.0004,97963.0,97962.0,0.75029948]
[1732496227260,0.0004,97963.0,97962.0,0.38418171]
[1732496227460,0.0004,97963.0,97962.0,0.050981]
[1732496227651,0.0004,97963.0,97958.0,0.30523072]
[1732496227851,0.0004,97963.0,97959.0,0.30523072]
[1732496228155,0.0322,97965.0,97961.0,0.30523072]
[1732496228358,0.0322,97965.0,97962.0,0.050986]
[1732496228562,0.0322,97965.0,97964.0,0.0004]
[1732496229858,0.0322,97965.0,97964.0,0.30563072]
[1732496230067,0.0322,97965.0,97964.0,0.0004]
[1732496234470,0.12376741,97965.0,97964.0,0.0004]
[1732496234761,0.0322,97965.0,97964.0,0.0004]
[1732496235156,0.393,97965.0,97964.0,0.0004]
[1732496235955,0.0322,97965.0,97964.0,0.0004]
[1732496236361,0.33844,97965.0,97964.0,0.0004]
[1732496236570,0.050988,97959.0,97954.0,0.23408591]
[1732496236867,0.3608,97956.0,97955.0,0.18309591]
[1732496237171,0.31375882,97958.0,97956.0,0.050989]
[1732496237364,0.191588,97958.0,97956.0,0.23401288]
[1732496237557,0.191588,97958.0,97957.0,0.0004]
[1732496237756,0.191588,97958.0,97957.0,0.18342388]
[1732496237970,0.191588,97958.0,97957.0,0.0004]
[1732496238857,0.2043149,97958.0,97957.0,0.0004]
[1732496239260,0.191588,97958.0,97957.0,0.0004]
[1732496239467,0.31366891,97958.0,97957.0,0.0004]
[1732496239858,0.191588,97958.0,97957.0,0.0004]
[1732496240474,0.31363727,97958.0,97957.0,0.0004]
[1732496240662,0.191588,97958.0,97957.0,0.0004]
[1732496240863,0.1406,97958.0,97945.0,0.18302388]
[1732496241072,0.050999,97938.0,97937.0,0.050999]
[1732496241261,0.050999,97938.0,97933.0,0.18302388]
[1732496241262,0.5014,97938.0,97933.0,0.18302388]
[1732496241466,0.051001,97934.0,97933.0,0.051001]
[1732496241774,0.05220099,97934.0,97933.0,0.051001]
[1732496242769,0.051003,97930.0,97929.0,7.523e-05]
[1732496242968,0.411803,97930.0,97929.0,7.523e-05]
[1732496243175,0.41312598,97930.0,97929.0,7.523e-05]
[1732496244370,0.41312598,97930.0,97929.0,0.05107823]
[1732496244875,0.55372598,97930.0,97929.0,0.05107823]
[1732496245072,0.50272298,97930.0,97929.0,0.05107823]
[1732496245869,0.36212298,97930.0,97929.0,0.05107823]
[1732496246071,0.50272298,97930.0,97929.0,0.05107823]
[1732496246980,0.36212298,97930.0,97929.0,0.05107823]
[1732496248471,0.36212298,97930.0,97929.0,7.523e-05]
[1732496248672,0.36796217,97930.0,97929.0,7.523e-05]
[1732496249877,0.36212298,97930.0,97929.0,7.523e-05]
[1732496253682,0.36795783,97930.0,97929.0,7.523e-05]
[1732496255082,0.36212298,97930.0,97929.0,7.523e-05]
[1732496255383,0.36794739,97930.0,97929.0,7.523e-05]
[1732496256282,0.36795499,97930.0,97929.0,7.523e-05]
[1732496256675,0.37185499,97930.0,97929.0,7.523e-05]
[1732496259183,0.37185499,97930.0,97919.0,0.18271586]
[1732496259389,0.37185499,97930.0,97883.0,0.0591]
[1732496259390,0.3608,97920.0,97903.0,0.24412248]
[1732496259594,0.3608,97905.0,97903.0,0.051017]
[1732496259889,0.36199999,97905.0,97903.0,0.051017]
[1732496260281,0.36199999,97905.0,97904.0,0.06208143]
[1732496261885,0.36199999,97905.0,97904.0,8.143e-05]
[1732496262690,0.36782525,97905.0,97904.0,8.143e-05]
[1732496263688,0.36199999,97905.0,97904.0,8.143e-05]
[1732496264391,0.00119999,97905.0,97904.0,8.143e-05]
[1732496265998,0.00119999,97905.0,97904.0,0.36088143]
[1732496266691,0.00119999,97905.0,97904.0,0.60500391]
[1732496266891,0.00119999,97905.0,97904.0,0.36088143]
[1732496267492,0.00119999,97905.0,97904.0,0.60500391]
[1732496267797,0.00119999,97905.0,97904.0,0.36088143]
[1732496270520,0.00119999,97905.0,97904.0,0.98871029]
[1732496270889,0.00119999,97905.0,97904.0,0.66611215]
[1732496271086,0.00119999,97905.0,97904.0,0.68347505]
[1732496271499,0.00119999,97905.0,97904.0,0.24426471]
[1732496271695,0.00119999,97905.0,97904.0,8.143e-05]
[1732496271896,0.00718036,97905.0,97904.0,8.143e-05]
[1732496272996,0.0169207,97905.0,97904.0,8.143e-05]
[1732496273894,0.00721944,97905.0,97904.0,8.143e-05]
[1732496274197,0.01695835,97905.0,97904.0,8.143e-05]
[1732496274386,0.01697163,97905.0,97904.0,8.143e-05]
[1732496276000,0.10849842,97905.0,97904.0,8.143e-05]
[1732496277003,0.10849842,97905.0,97904.0,0.36088143]
[1732496277296,0.01697163,97905.0,97904.0,0.36088143]
[1732496277695,0.01706187,97905.0,97904.0,0.39471453]
[1732496278197,0.01706187,97905.0,97904.0,0.03391453]
[1732496278789,0.01706187,97905.0,97904.0,8.143e-05]
[1732496279999,0.15858187,97905.0,97904.0,8.143e-05]
[1732496280191,0.15858187,97905.0,97887.0,0.29521198]
[1732496280192,0.051021,97896.0,97887.0,0.29521198]
[1732496280392,0.051021,97896.0,97890.0,0.051023]
[1732496280393,0.0039,97892.0,97890.0,0.051023]
[1732496280594,0.01586188,97891.0,97890.0,0.051023]
[1732496280909,0.00610969,97891.0,97890.0,0.051023]
[1732496281205,0.00610969,97891.0,97890.0,0.05113968]
[1732496281504,0.00610969,97891.0,97890.0,0.00011668]
[1732496282709,0.01000969,97891.0,97890.0,0.00011668]
[1732496283599,0.02272735,97891.0,97890.0,0.00011668]
[1732496283801,0.15152969,97891.0,97890.0,0.05114068]
[1732496284504,0.01000969,97891.0,97890.0,0.05114068]
[1732496285901,0.0098788,97891.0,97890.0,0.05114068]
[1732496286407,0.04380467,97891.0,97890.0,0.05114068]
[1732496286805,0.0098788,97891.0,97890.0,0.05114068]
[1732496287506,0.0039,97891.0,97890.0,0.05114068]
[1732496287913,0.00987073,97891.0,97890.0,0.05114068]
[1732496288100,0.00987073,97891.0,97880.0,0.24852305]
[1732496288403,0.3608,97887.0,97875.0,0.051031]
[1732496288605,0.00597073,97886.0,97875.0,0.051031]
[1732496288812,0.00597073,97886.0,97885.0,0.051026]
[1732496289705,0.051026,97885.0,97884.0,0.00012678]
[1732496289905,0.11979673,97885.0,97884.0,0.00012678]
[1732496290512,0.051036,97866.0,97865.0,0.00153252]
[1732496290815,0.41901053,97866.0,97865.0,0.00153252]
[1732496291111,1.91901053,97866.0,97865.0,0.00153252]
[1732496291304,1.92411538,97866.0,97865.0,0.00153252]
[1732496291501,0.42422273,97866.0,97865.0,0.00153252]
[1732496291714,0.41911788,97866.0,97865.0,0.00153252]
[1732496292308,0.42878096,97866.0,97865.0,0.00153252]
[1732496293514,0.01694496,97866.0,97865.0,0.00153252]
[1732496294308,0.01097042,97866.0,97865.0,0.00153252]
[1732496294508,0.01097042,97866.0,97865.0,0.03273252]
[1732496294907,0.01100302,97866.0,97865.0,0.03273252]
[1732496295919,0.01490302,97866.0,97865.0,0.03273252]
[1732496296912,0.02094524,97866.0,97865.0,0.03273252]
[1732496297110,0.01490302,97866.0,97865.0,0.03273252]
[1732496297608,0.01490302,97866.0,97865.0,0.06519144]
[1732496298413,0.00520734,97866.0,97865.0,0.06519144]
[1732496299021,0.01507292,97866.0,97865.0,0.06519144]
[1732496301115,0.051037,97865.0,97860.0,0.051039]
[1732496301314,0.01589506,97864.0,97860.0,0.051039]
[1732496301519,0.00119999,97861.0,97860.0,0.051039]
[1732496301723,0.01709505,97861.0,97860.0,0.051039]
[1732496302112,0.01710083,97861.0,97860.0,0.051039]
[1732496303208,0.01710083,97861.0,97856.0,9.767e-05]
[1732496303209,0.05104,97858.0,97856.0,9.767e-05]
[1732496303412,0.37670084,97857.0,97856.0,9.767e-05]
[1732496303615,0.37790083,97857.0,97856.0,9.767e-05]
[1732496305018,0.37186557,97857.0,97856.0,9.767e-05]
[1732496305216,0.3778802,97857.0,97856.0,9.767e-05]
[1732496305522,0.3778811,97857.0,97856.0,9.767e-05]
[1732496309527,0.37797664,97857.0,97856.0,9.767e-05]
[1732496309922,0.38775838,97857.0,97856.0,9.767e-05]
[1732496310728,0.39165838,97857.0,97856.0,9.767e-05]
[1732496311219,0.03085838,97857.0,97856.0,9.767e-05]
[1732496311528,0.02107664,97857.0,97856.0,9.767e-05]
[1732496313024,0.02107664,97857.0,97856.0,0.30665767]
[1732496313223,0.36090735,97866.0,97865.0,0.051037]
[1732496313633,0.36090735,97866.0,97865.0,0.051437]
[1732496314314,0.00010735,97866.0,97865.0,0.051437]
[1732496315625,0.00010735,97866.0,97865.0,0.114937]
[1732496316028,0.00010735,97866.0,97865.0,0.421497]
[1732496316233,0.00010735,97866.0,97865.0,0.73765651]
[1732496316526,0.00010735,97866.0,97865.0,1.10386368]
[1732496316726,0.00010735,97866.0,97865.0,1.10417821]
[1732496317824,0.00010735,97866.0,97865.0,0.73765651]
[1732496318132,0.00010735,97866.0,97865.0,0.39929651]
[1732496318318,0.00010735,97866.0,97865.0,0.051437]
[1732496319421,0.00010735,97866.0,97865.0,0.36583357]
[1732496320524,0.00010735,97866.0,97865.0,0.35713097]
[1732496320719,0.00010735,97866.0,97865.0,0.30609397]
[1732496320916,0.00010735,97866.0,97865.0,0.0004]
[1732496324834,0.00010735,97866.0,97865.0,0.6253316]
[1732496325133,0.00595548,97866.0,97865.0,0.0004]
[1732496325628,0.00595548,97866.0,97865.0,0.31954968]
[1732496325931,0.00010735,97866.0,97865.0,0.31954968]
[1732496326628,0.051031,97876.0,97867.0,0.051036]
[1732496326820,0.051031,97876.0,97872.0,0.051033]
[1732496327023,0.051031,97876.0,97875.0,0.0004]
[1732496327623,0.05114554,97876.0,97875.0,0.0004]
[1732496335832,0.06388336,97876.0,97875.0,0.0004]
[1732496336233,0.05114554,97876.0,97875.0,0.0004]
[1732496338832,0.051036,97867.0,97866.0,0.00032351]
[1732496339134,0.41223601,97867.0,97866.0,0.00032351]
[1732496339531,1.91223601,97867.0,97866.0,0.00032351]
[1732496339837,1.91734253,97867.0,97866.0,0.00032351]
[1732496340723,0.41734253,97867.0,97866.0,0.00032351]
[1732496340924,0.41223601,97867.0,97866.0,0.00032351]